fUSD/lending_fUSD_20240729
["ID","MTS","AMOUNT","RATE_DAILY","PERIOD"]
[333582657,1722257446513,-500.0,0.00010999,2]
[333582658,1722257446527,-500.0,0.00010999,2]
[333582659,1722257446536,-500.0,0.00010999,2]
[333582660,1722257446546,-500.0,0.00010999,2]
[333582661,1722257446555,-500.0,0.00010999,2]
[333582662,1722257446565,-500.0,0.00010999,2]
[333582663,1722257446574,-500.0,0.00010999,2]
[333582664,1722257446583,-520.89886519,0.00010999,2]
[333582665,1722257446593,-500.0,0.00010999,2]
[333582666,1722257446605,-500.0,0.00010999,2]
[333582667,1722257446615,-500.0,0.00010999,2]
[333582668,1722257446624,-321.69787524,0.00010999,2]
[333582669,1722257446634,-440.0,0.00010999,2]
[333582670,1722257446643,-500.0,0.00010999,2]
[333582671,1722257446652,-599.98470993,0.00010999,2]
[333582672,1722257446662,-638.21,0.00010999,2]
[333582673,1722257446672,-638.21,0.00010999,2]
[333582674,1722257446682,-638.21,0.00010999,2]
[333582675,1722257446692,-229108.67247836,0.00011,2]
[333582676,1722257446701,-644900.09253621,0.00011,2]
[333582677,1722257446886,-1001.30950324,0.00011,2]
[333582678,1722257446898,-602.00767301,0.00011,2]
[333582679,1722257446909,-1479.3204855,0.00011,2]
[333582680,1722257446920,-861.38444978,0.00011,2]
[333582681,1722257446932,-4654.07942735,0.00011,2]
[333582682,1722257446943,-1597.17608799,0.00011,2]
[333582683,1722257446958,-350769.08676626,0.00011,2]
[333582684,1722257446968,-498.00325714,0.00011,2]
[333582685,1722257446983,-394.9925689,0.00011,2]
[333582686,1722257447705,-923.15264686,0.00011,2]
[333582687,1722257447717,-30625.615,0.00011,2]
[333582688,1722257447744,-921.3,0.00011,2]
[333582689,1722257447765,-3504.1443,0.00011,2]
[333582690,1722257447786,-6885.1014996,0.00011,2]
[333582691,1722257447798,-4302.89567398,0.00011,2]
[333582692,1722257447910,-260.04977456,0.00010436,2]
[333582693,1722257447920,-500.0,0.00010998,2]
[333582694,1722257447929,-638.21,0.00010999,2]
[333582695,1722257447938,-638.21,0.00010999,2]
[333582696,1722257447947,-336.88344091,0.00010999,2]
[333582697,1722257447962,-301.32655909,0.00010999,2]
[333582698,1722257447972,-638.21,0.00010999,2]
[333582699,1722257447983,-877434.73637922,0.00011,2]
[333582700,1722257447994,-825.92500001,0.00011,2]
[333582701,1722257448020,-571.39,0.00010999,2]
[333582702,1722257448029,-698628.1738857,0.00011,2]
[333582703,1722257448041,-2246.71883833,0.00011,2]
[333582704,1722257562594,151.0,0.00020469,120]
[333582709,1722258038079,151.0,0.00020469,120]
[333582718,1722258337798,13982.0,6.781e-05,7]
[333582743,1722258465055,-150.0,6.78e-05,2]
[333582744,1722258465080,-991.0,6.78e-05,2]
[333582745,1722258465105,-300.0,6.78e-05,2]
[333582746,1722258465133,-5590.9287,6.781e-05,7]
[333582749,1722258469324,-10000.0,6.781e-05,7]
[333582750,1722258469828,-10000.0,6.781e-05,7]
[333582752,1722258472115,-10000.0,6.781e-05,7]
[333582754,1722258474325,-9869.0713,6.781e-05,7]
[333582755,1722258474346,-130.9287,6.781e-05,2]
[333582756,1722258475331,-9131.07656818,6.781e-05,2]
[333582757,1722258475353,-868.92343182,6.781e-05,2]
[333582758,1722258475895,-10000.0,6.781e-05,2]
[333582759,1722258476449,-10000.0,6.781e-05,2]
[333582775,1722258585297,-300.0,6.78e-05,2]
[333582776,1722258585317,-150.0,6.78e-05,2]
[333582777,1722258585338,-9550.0,6.781e-05,2]
[333582779,1722258593377,-10000.0,6.781e-05,2]
[333582780,1722258600972,-300.0,6.78e-05,2]
[333582781,1722258600993,-9700.0,6.781e-05,2]
[333582782,1722258605545,-10000.0,6.781e-05,2]
[333582783,1722258610221,-10000.0,6.781e-05,2]
[333582784,1722258615959,-10000.0,6.781e-05,2]
[333582785,1722258620783,-10000.0,6.781e-05,2]
[333582786,1722258625121,-10000.0,6.781e-05,2]
[333582787,1722258629038,-10000.0,6.781e-05,2]
[333582805,1722258631499,-1731.28504997,6.781e-05,2]
[333582806,1722258631553,-328.64556,6.781e-05,2]
[333582807,1722258631751,-1.036e-05,6.781e-05,2]
[333582808,1722258631777,-1137.52609305,6.781e-05,2]
[333582809,1722258631789,-122558.10392089,6.781e-05,2]
[333582810,1722258631798,-411.49590119,6.781e-05,2]
[333582811,1722258631808,-158.89214618,6.781e-05,2]
[333582812,1722258631818,-871.33841357,6.781e-05,2]
[333582813,1722258631827,-244.51851626,6.781e-05,2]
[333582814,1722258631836,-790.28888999,6.781e-05,2]
[333582815,1722258631845,-17381.56299448,6.781e-05,2]
[333582816,1722258631854,-1222.2466986,6.781e-05,2]
[333582817,1722258631863,-9262.00526818,6.781e-05,2]
[333582818,1722258631873,-961.25222025,6.781e-05,2]
[333582819,1722258631882,-150.0,6.781e-05,2]
[333582820,1722258631891,-150.0,6.781e-05,2]
[333582821,1722258631900,-150.0,6.781e-05,2]
[333582822,1722258631912,-150.0,6.781e-05,2]
[333582823,1722258631921,-165.33,7.442e-05,2]
[333582824,1722258631930,-210.0,7.458e-05,2]
[333582825,1722258631939,-300.0,7.458e-05,2]
[333582826,1722258631948,-402.41,8.219e-05,2]
[333582827,1722258631958,-947.60072722,8.219e-05,2]
[333582828,1722258631967,-400.0,9.302e-05,2]
[333582829,1722258631976,-1011.4,9.791e-05,2]
[333582830,1722258631985,-600.0,9.81e-05,2]
[333582831,1722258631995,-200.0,9.844e-05,2]
[333582832,1722258632004,-307.54441978,9.888e-05,2]
[333582833,1722258632013,-307.54441978,9.899e-05,2]
[333582834,1722258632022,-600.0,9.9e-05,3]
[333582835,1722258632031,-307.54441978,9.91e-05,2]
[333582836,1722258632040,-307.54441978,9.921e-05,2]
[333582837,1722258632049,-307.54441978,9.932e-05,2]
[333582838,1722258632059,-307.54441978,9.943e-05,2]
[333582839,1722258632069,-307.54441978,9.954e-05,2]
[333582840,1722258632081,-307.54441978,9.965e-05,2]
[333582841,1722258632090,-307.54441978,9.976e-05,2]
[333582842,1722258632099,-307.54441978,9.988e-05,2]
[333582843,1722258632108,-307.54441978,9.999e-05,2]
[333582844,1722258632118,-371.5992053,0.0001,2]
[333582845,1722258632127,-1300.0,0.0001,3]
[333582846,1722258632136,-307.54441978,0.0001001,2]
[333582847,1722258632146,-307.54441978,0.00010021,2]
[333582848,1722258632157,-307.54441978,0.00010032,2]
[333582849,1722258632168,-307.54441978,0.00010043,2]
[333582850,1722258632177,-307.54441978,0.00010054,2]
[333582851,1722258632187,-307.54441978,0.00010065,2]
[333582852,1722258632196,-500.0,0.00010068,2]
[333582853,1722258632205,-800.0,0.00010068,2]
[333582854,1722258632214,-307.54441978,0.00010076,2]
[333582855,1722258632223,-307.54441978,0.00010087,2]
[333582856,1722258632233,-307.54441978,0.00010099,2]
[333582857,1722258632242,-2000.0,0.000101,3]
[333582858,1722258632251,-307.54441978,0.0001011,2]
[333582859,1722258632260,-307.54441978,0.00010121,2]
[333582860,1722258632270,-307.54441978,0.00010132,2]
[333582861,1722258632280,-307.54441978,0.00010143,2]
[333582862,1722258632289,-307.54441978,0.00010154,2]
[333582863,1722258632298,-307.54441978,0.00010165,2]
[333582864,1722258632307,-307.54441978,0.00010176,2]
[333582865,1722258632317,-307.54441978,0.00010187,2]
[333582866,1722258632326,-911.7592398,0.00010194,2]
[333582867,1722258632335,-307.54441978,0.00010198,2]
[333582868,1722258632344,-2580.84603724,0.000102,3]
[333582869,1722258632356,-119.15396276,0.000102,3]
[333582870,1722258632366,-307.54441978,0.00010209,2]
[333582871,1722258632375,-307.54441978,0.00010221,2]
[333582872,1722258632385,-307.54441978,0.00010232,2]
[333582873,1722258632394,-307.54441978,0.00010243,2]
[333582874,1722258632403,-307.54441978,0.00010254,2]
[333582875,1722258632414,-307.54441978,0.00010265,2]
[333582876,1722258632423,-307.54441978,0.00010276,2]
[333582877,1722258632432,-307.54441978,0.00010287,2]
[333582878,1722258632442,-307.54441978,0.00010298,2]
[333582879,1722258632451,-3400.0,0.000103,3]
[333582880,1722258632460,-307.54441978,0.00010309,2]
[333582881,1722258632470,-307.54441978,0.0001032,2]
[333582882,1722258632480,-307.54441978,0.00010332,2]
[333582883,1722258632490,-307.54441978,0.00010343,2]
[333582884,1722258632499,-307.54441978,0.00010354,2]
[333582885,1722258632508,-307.54441978,0.00010365,2]
[333582886,1722258632518,-307.54441978,0.00010376,2]
[333582887,1722258632527,-307.54441978,0.00010387,2]
[333582888,1722258632536,-307.54441978,0.00010398,2]
[333582889,1722258632546,-600.0,0.000104,3]
[333582890,1722258632555,-307.54441978,0.00010409,2]
[333582891,1722258632564,-307.54441978,0.0001042,2]
[333582892,1722258632573,-307.54441978,0.00010431,2]
[333582894,1722258632583,-307.54441978,0.00010443,2]
[333582896,1722258632592,-307.54441978,0.00010454,2]
[333582898,1722258632602,-400.0,0.00010464,2]
[333582899,1722258632611,-307.54441978,0.00010465,2]
[333582900,1722258632620,-402.41,0.00010467,2]
[333582901,1722258632629,-307.54441978,0.00010476,2]
[333582902,1722258632639,-307.54441978,0.00010487,2]
[333582903,1722258632648,-307.54441978,0.00010498,2]
[333582904,1722258632657,-600.0,0.000105,3]
[333582905,1722258632667,-307.54441978,0.00010509,2]
[333582906,1722258632677,-307.54441978,0.0001052,2]
[333582907,1722258632686,-307.54441978,0.00010531,2]
[333582908,1722258632695,-307.54441978,0.00010542,2]
[333582909,1722258632704,-307.54441978,0.00010554,2]
[333582910,1722258632713,-307.54441978,0.00010565,2]
[333582911,1722258632722,-1271.614,0.00010575,2]
[333582912,1722258632731,-1651.503,0.00010575,2]
[333582913,1722258632741,-5121.0,0.00010575,2]
[333582914,1722258632750,-1669.0,0.00010575,2]
[333582915,1722258632759,-19802.58689487,0.00010575,2]
[333582916,1722258632870,-1001.07908928,0.00010575,2]
[333582917,1722258632882,-8294.1926283,0.00010575,2]
[333582918,1722258632892,-817.92,0.00010575,2]
[333582919,1722258632903,-758.46063196,0.00010575,2]
[333582920,1722258632915,-715.22272661,0.00010575,2]
[333582923,1722258638285,-713.52089121,0.00010575,2]
[333582924,1722258638297,-6262.69213777,0.00010575,2]
[333582925,1722258638306,-307.54441978,0.00010576,2]
[333582926,1722258638316,-307.54441978,0.00010587,2]
[333582927,1722258638326,-307.54441978,0.00010598,2]
[333582928,1722258638335,-600.0,0.000106,3]
[333582929,1722258638345,-307.54441978,0.00010609,2]
[333582930,1722258638354,-600.0,0.00010619,2]
[333582931,1722258638363,-307.54441978,0.0001062,2]
[333582932,1722258638373,-307.54441978,0.00010631,2]
[333582933,1722258638384,-307.54441978,0.00010642,2]
[333582934,1722258638393,-307.54441978,0.00010653,2]
[333582935,1722258638402,-307.54441978,0.00010664,2]
[333582936,1722258638412,-307.54441978,0.00010676,2]
[333582937,1722258638422,-307.54441978,0.00010687,2]
[333582938,1722258638431,-307.54441978,0.00010698,2]
[333582939,1722258638440,-600.0,0.000107,3]
[333582940,1722258638451,-307.54441978,0.00010709,2]
[333582941,1722258638461,-307.54441978,0.0001072,2]
[333582942,1722258638470,-307.54441978,0.00010731,2]
[333582943,1722258638480,-500.0,0.00010733,2]
[333582944,1722258638489,-500.0,0.00010742,2]
[333582945,1722258638499,-307.54441978,0.00010742,2]
[333582946,1722258638508,-500.0,0.0001075,2]
[333582947,1722258638517,-307.54441978,0.00010753,2]
[333582948,1722258638527,-500.0,0.00010759,2]
[333582949,1722258638536,-307.54441978,0.00010764,2]
[333582950,1722258638545,-500.0,0.00010768,2]
[333582951,1722258638555,-307.54441978,0.00010775,2]
[333582952,1722258638564,-500.0,0.00010777,2]
[333582953,1722258638573,-1099.0,0.00010779,2]
[333582954,1722258638583,-500.0,0.00010786,2]
[333582955,1722258638592,-307.54441978,0.00010787,2]
[333582956,1722258638601,-500.0,0.00010794,2]
[333582957,1722258638611,-307.54441978,0.00010798,2]
[333582958,1722258638620,-1534.0,0.000108,3]
[333582959,1722258638630,-500.0,0.00010803,2]
[333582960,1722258638639,-307.54441978,0.00010809,2]
[333582962,1722258638649,-500.0,0.00010812,2]
[333582963,1722258638659,-307.54441978,0.0001082,2]
[333582965,1722258638670,-500.0,0.00010821,2]
[333582967,1722258638679,-500.0,0.0001083,2]
[333582969,1722258638688,-307.54441978,0.00010831,2]
[333582971,1722258638697,-500.0,0.00010838,2]
[333582973,1722258638706,-307.54441978,0.00010842,2]
[333582975,1722258638715,-500.0,0.00010847,2]
[333582977,1722258638724,-5374.17993085,0.00010851,2]
[333582979,1722258638734,-307.54441978,0.00010853,2]
[333582981,1722258638743,-486.0898111,0.00010856,2]
[333582983,1722258638755,-13.9101889,0.00010856,2]
[333582985,1722258638764,-307.54441978,0.00010864,2]
[333582986,1722258638774,-112.24511293,0.00010865,2]
[333582987,1722258638801,-387.75488707,0.00010865,2]
[333582988,1722258638810,-261.79991233,0.00010872,2]
[333582989,1722258638821,-600.0,0.00010872,2]
[333582990,1722258638833,-614.32,0.00010872,2]
[333582991,1722258638852,-2709.48663959,0.00010872,2]
[333582992,1722258638863,-1188.57337893,0.00010872,2]
[333582993,1722258638872,-5374.17993085,0.00010874,2]
[333582994,1722258638882,-457.67737171,0.00010874,2]
[333582995,1722258638907,-42.32262829,0.00010874,2]
[333582996,1722258638918,-307.54441978,0.00010875,2]
[333582997,1722258638928,-500.0,0.00010882,2]
[333582998,1722258638937,-307.54441978,0.00010886,2]
[333582999,1722258638946,-800.0,0.0001089,2]
[333583000,1722258638955,-6534.25301174,0.0001089,2]
[333583001,1722258639012,-5177.57907153,0.0001089,2]
[333583002,1722258639022,-98305.20564304,0.0001089,2]
[333583003,1722258639031,-500.0,0.00010891,2]
[333583004,1722258639040,-307.54441978,0.00010898,2]
[333583005,1722258639049,-561.01565622,0.00010898,2]
[333583006,1722258639058,-561.01565622,0.00010899,2]
[333583007,1722258639070,-20618.1762,0.00010899,2]
[333583008,1722258639082,-2000.0,0.00010899,2]
[333583009,1722258639091,-571.34326958,0.00010899,2]
[333583010,1722258639100,-571.34326957,0.00010899,2]
[333583011,1722258639110,-571.34326957,0.00010899,2]
[333583012,1722258639120,-571.34326957,0.00010899,2]
[333583013,1722258639129,-571.34326957,0.00010899,2]
[333583018,1722258639338,-571.34326957,0.00010899,2]
[333583019,1722258639348,-571.34326957,0.00010899,2]
[333583020,1722258639357,-571.34326957,0.00010899,2]
[333583021,1722258639367,-571.34326957,0.00010899,2]
[333583022,1722258639377,-561.01565622,0.00010899,2]
[333583023,1722258639387,-3458.7345,0.000109,2]
[333583024,1722258639396,-500.0,0.000109,2]
[333583025,1722258639406,-162.14827499,0.000109,2]
[333583026,1722258639416,-162.14827496,0.000109,2]
[333583027,1722258639426,-3903.45762389,0.000109,2]
[333583028,1722258639436,-162.14827496,0.000109,2]
[333583029,1722258639445,-162.14827496,0.000109,2]
[333583030,1722258639455,-571.34326957,0.000109,2]
[333583031,1722258639464,-526.52701274,0.000109,2]
[333583032,1722258639474,-221.07,0.00010904,2]
[333583033,1722258639483,-307.54441978,0.00010909,2]
[333583034,1722258639493,-500.0,0.00010911,2]
[333583035,1722258639502,-500.0,0.00010912,2]
[333583036,1722258639512,-307.54441978,0.0001092,2]
[333583037,1722258639521,-10883.96667531,0.00010923,2]
[333583038,1722258639530,-1060.16123866,0.00010923,2]
[333583039,1722258639539,-307.54441978,0.00010931,2]
[333583040,1722258639548,-307.54441978,0.00010942,2]
[333583041,1722258639557,-307.54441978,0.00010953,2]
[333583042,1722258639566,-499.99999999,0.00010958,2]
[333583043,1722258639575,-498.4750383,0.00010958,2]
[333583044,1722258639584,-500.0,0.00010958,2]
[333583045,1722258639594,-500.0,0.00010958,2]
[333583046,1722258639603,-215.07010734,0.00010958,2]
[333583047,1722258639613,-500.0,0.00010958,2]
[333583048,1722258639622,-500.0,0.00010958,2]
[333583049,1722258639631,-500.0,0.00010958,2]
[333583050,1722258639640,-500.0,0.00010958,2]
[333583051,1722258639649,-500.0,0.00010958,2]
[333583052,1722258639659,-500.0,0.00010958,2]
[333583053,1722258639668,-500.0,0.00010958,2]
[333583054,1722258639677,-500.0,0.00010958,2]
[333583055,1722258639686,-1182.03,0.00010958,2]
[333583056,1722258639696,-1182.03,0.00010958,2]
[333583057,1722258639706,-1182.03,0.00010958,2]
[333583058,1722258639715,-500.0,0.00010958,2]
[333583059,1722258639724,-500.0,0.00010958,2]
[333583060,1722258639734,-500.0,0.00010958,2]
[333583061,1722258639743,-500.0,0.00010958,2]
[333583062,1722258639752,-500.0,0.00010958,2]
[333583063,1722258639762,-500.0,0.00010958,2]
[333583064,1722258639771,-823.4,0.00010958,2]
[333583065,1722258639781,-500.0,0.00010958,2]
[333583066,1722258639790,-500.0,0.00010958,2]
[333583067,1722258639799,-500.0,0.00010958,2]
[333583068,1722258639809,-500.0,0.00010958,2]
[333583069,1722258639818,-500.0,0.00010958,2]
[333583070,1722258639827,-500.0,0.00010958,2]
[333583071,1722258639837,-484.18211709,0.00010958,2]
[333583072,1722258639846,-500.0,0.00010958,2]
[333583073,1722258639855,-500.0,0.00010958,2]
[333583074,1722258639864,-500.0,0.00010958,2]
[333583075,1722258639873,-500.0,0.00010958,2]
[333583076,1722258639883,-346.63344013,0.00010958,2]
[333583077,1722258639892,-500.0,0.00010958,2]
[333583078,1722258639901,-500.0,0.00010958,2]
[333583079,1722258639910,-500.0,0.00010958,2]
[333583080,1722258639921,-407.54,0.00010958,2]
[333583081,1722258639930,-1385.61,0.00010958,2]
[333583082,1722258639939,-1385.61,0.00010958,2]
[333583083,1722258639948,-531.3,0.00010958,2]
[333583084,1722258639957,-267.77054585,0.00010958,2]
[333583085,1722258639967,-500.0,0.00010958,2]
[333583086,1722258639976,-500.0,0.00010958,2]
[333583087,1722258639985,-500.0,0.00010958,2]
[333583088,1722258639994,-500.0,0.00010958,2]
[333583089,1722258640003,-500.0,0.00010958,2]
[333583090,1722258640012,-208.55,0.00010958,2]
[333583091,1722258640021,-500.0,0.00010958,2]
[333583092,1722258640030,-500.0,0.00010958,2]
[333583093,1722258640039,-500.0,0.00010958,2]
[333583094,1722258640048,-500.0,0.00010958,2]
[333583095,1722258640057,-750.84,0.00010958,2]
[333583096,1722258640066,-750.84,0.00010958,2]
[333583097,1722258640077,-500.0,0.00010959,2]
[333583098,1722258640086,-200.0,0.00010959,2]
[333583099,1722258640095,-200.0,0.00010959,2]
[333583100,1722258640105,-2468.96,0.00010959,2]
[333583101,1722258640117,-250.0,0.00010959,2]
[333583102,1722258640126,-174.77,0.00010959,2]
[333583103,1722258640135,-150.0,0.00010959,2]
[333583104,1722258640144,-174.77,0.00010959,2]
[333583105,1722258640154,-699.12,0.00010959,2]
[333583106,1722258640164,-307.54441978,0.00010964,2]
[333583107,1722258640174,-307.54441978,0.00010975,2]
[333583108,1722258640183,-307.54441978,0.00010986,2]
[333583109,1722258640192,-1191.0,0.00010986,2]
[333583110,1722258640202,-294.0,0.0001099,2]
[333583111,1722258640211,-150.121,0.00010992,2]
[333583112,1722258640221,-1994.0,0.00010992,2]
[333583113,1722258640230,-3283.0,0.00010992,2]
[333583114,1722258640240,-1370.0,0.00010992,2]
[333583115,1722258640249,-24327.74658109,0.00010992,2]
[333583116,1722258640258,-500.0,0.00010995,2]
[333583117,1722258640267,-823.4,0.00010995,2]
[333583118,1722258640276,-529.80849113,0.00010995,2]
[333583119,1722258640286,-531.3,0.00010995,2]
[333583120,1722258640295,-500.0,0.00010996,2]
[333583121,1722258640304,-500.0,0.00010996,2]
[333583122,1722258640313,-500.0,0.00010996,2]
[333583123,1722258640323,-500.0,0.00010996,2]
[333583124,1722258640333,-500.0,0.00010996,2]
[333583125,1722258640343,-500.0,0.00010996,2]
[333583126,1722258640353,-500.0,0.00010996,2]
[333583127,1722258640362,-500.0,0.00010996,2]
[333583128,1722258640372,-500.0,0.00010996,2]
[333583129,1722258640381,-500.0,0.00010996,2]
[333583130,1722258640391,-500.0,0.00010996,2]
[333583131,1722258640400,-331.28,0.00010996,2]
[333583132,1722258640409,-500.0,0.00010996,2]
[333583133,1722258640420,-500.0,0.00010996,2]
[333583134,1722258640430,-635.96376434,0.00010996,2]
[333583135,1722258640440,-500.0,0.00010996,2]
[333583136,1722258640449,-500.0,0.00010996,2]
[333583137,1722258640458,-500.0,0.00010996,2]
[333583138,1722258640467,-500.0,0.00010996,2]
[333583139,1722258640476,-500.0,0.00010996,2]
[333583140,1722258640486,-500.0,0.00010996,2]
[333583141,1722258640495,-498.79137197,0.00010996,2]
[333583142,1722258640504,-509.34,0.00010996,2]
[333583143,1722258640513,-500.0,0.00010996,2]
[333583144,1722258640522,-500.0,0.00010996,2]
[333583145,1722258640532,-500.0,0.00010996,2]
[333583146,1722258640541,-500.0,0.00010996,2]
[333583147,1722258640550,-429.23634182,0.00010996,2]
[333583148,1722258640559,-500.0,0.00010996,2]
[333583149,1722258640568,-500.0,0.00010996,2]
[333583150,1722258640577,-500.0,0.00010996,2]
[333583151,1722258640588,-635.32,0.00010996,2]
[333583152,1722258640598,-464.68488091,0.00010996,2]
[333583153,1722258640607,-500.0,0.00010996,2]
[333583154,1722258640616,-500.0,0.00010996,2]
[333583155,1722258640626,-500.0,0.00010996,2]
[333583156,1722258640635,-500.0,0.00010996,2]
[333583157,1722258640644,-258.11,0.00010996,2]
[333583158,1722258640653,-500.0,0.00010996,2]
[333583159,1722258640662,-500.0,0.00010996,2]
[333583160,1722258640675,-500.0,0.00010996,2]
[333583161,1722258640685,-500.0,0.00010996,2]
[333583162,1722258640694,-500.0,0.00010996,2]
[333583163,1722258640705,-500.0,0.00010996,2]
[333583164,1722258640715,-601.64,0.00010996,2]
[333583165,1722258640724,-574.24,0.00010996,2]
[333583166,1722258640733,-636.98,0.00010996,2]
[333583167,1722258640743,-500.0,0.00010996,2]
[333583168,1722258640752,-500.0,0.00010996,2]
[333583169,1722258640762,-539.72,0.00010996,2]
[333583170,1722258640771,-518.58,0.00010996,2]
[333583171,1722258640781,-500.0,0.00010996,2]
[333583172,1722258640790,-500.0,0.00010996,2]
[333583173,1722258640799,-500.0,0.00010996,2]
[333583174,1722258640809,-500.0,0.00010996,2]
[333583175,1722258640818,-571.15862645,0.00010996,2]
[333583176,1722258640827,-500.0,0.00010996,2]
[333583177,1722258640837,-500.0,0.00010996,2]
[333583178,1722258640846,-500.0,0.00010996,2]
[333583179,1722258640855,-500.0,0.00010996,2]
[333583180,1722258640864,-500.0,0.00010996,2]
[333583181,1722258640874,-500.0,0.00010996,2]
[333583182,1722258640883,-500.0,0.00010996,2]
[333583183,1722258640892,-500.0,0.00010996,2]
[333583184,1722258640902,-500.0,0.00010996,2]
[333583185,1722258640911,-500.0,0.00010996,2]
[333583186,1722258640923,-500.0,0.00010996,2]
[333583187,1722258640933,-600.29,0.00010996,2]
[333583188,1722258640942,-500.0,0.00010996,2]
[333583189,1722258640951,-350.13943815,0.00010996,2]
[333583190,1722258640961,-500.0,0.00010996,2]
[333583191,1722258640970,-500.0,0.00010996,2]
[333583192,1722258640979,-504.87462917,0.00010996,2]
[333583193,1722258640988,-500.0,0.00010996,2]
[333583194,1722258640997,-500.0,0.00010996,2]
[333583195,1722258641006,-500.0,0.00010996,2]
[333583196,1722258641016,-500.0,0.00010996,2]
[333583197,1722258641025,-516.03,0.00010996,2]
[333583198,1722258641035,-500.0,0.00010996,2]
[333583199,1722258641044,-1041.35,0.00010996,2]
[333583200,1722258641053,-500.0,0.00010996,2]
[333583201,1722258641062,-514.25,0.00010996,2]
[333583202,1722258641072,-500.0,0.00010996,2]
[333583203,1722258641083,-500.0,0.00010996,2]
[333583204,1722258641092,-543.32,0.00010996,2]
[333583205,1722258641102,-917.28,0.00010996,2]
[333583206,1722258641111,-500.0,0.00010996,2]
[333583207,1722258641122,-504.90307358,0.00010996,2]
[333583208,1722258641131,-500.0,0.00010996,2]
[333583209,1722258641140,-582.11,0.00010996,2]
[333583210,1722258641150,-500.0,0.00010996,2]
[333583211,1722258641160,-500.0,0.00010996,2]
[333583212,1722258641172,-500.0,0.00010996,2]
[333583213,1722258641181,-350.77118171,0.00010996,2]
[333583214,1722258641191,-500.0,0.00010996,2]
[333583215,1722258641201,-550.86,0.00010996,2]
[333583216,1722258641210,-500.0,0.00010996,2]
[333583217,1722258641219,-500.0,0.00010996,2]
[333583218,1722258641229,-500.0,0.00010996,2]
[333583219,1722258641239,-558.91,0.00010996,2]
[333583220,1722258641249,-3117.15,0.00010996,2]
[333583221,1722258641258,-597.36,0.00010996,2]
[333583222,1722258641267,-500.0,0.00010996,2]
[333583223,1722258641281,-500.0,0.00010996,2]
[333583224,1722258641293,-500.0,0.00010996,2]
[333583225,1722258641305,-500.0,0.00010996,2]
[333583226,1722258641317,-738.18,0.00010996,2]
[333583227,1722258641329,-500.0,0.00010996,2]
[333583228,1722258641340,-500.0,0.00010996,2]
[333583229,1722258641350,-500.0,0.00010996,2]
[333583230,1722258641362,-500.0,0.00010996,2]
[333583231,1722258641374,-226.79731112,0.00010996,2]
[333583232,1722258641385,-500.0,0.00010996,2]
[333583233,1722258641396,-500.0,0.00010996,2]
[333583234,1722258641408,-1328.7,0.00010996,2]
[333583235,1722258641424,-500.0,0.00010996,2]
[333583236,1722258641436,-868.05,0.00010996,2]
[333583237,1722258641448,-219.91385078,0.00010996,2]
[333583238,1722258641460,-500.0,0.00010996,2]
[333583239,1722258641472,-500.0,0.00010996,2]
[333583240,1722258641485,-500.0,0.00010996,2]
[333583241,1722258641496,-2055.42,0.00010996,2]
[333583242,1722258641508,-500.0,0.00010996,2]
[333583243,1722258641519,-500.0,0.00010996,2]
[333583244,1722258641531,-500.0,0.00010996,2]
[333583245,1722258641543,-672.65,0.00010996,2]
[333583246,1722258641554,-1806.37,0.00010996,2]
[333583247,1722258641566,-500.0,0.00010996,2]
[333583248,1722258641578,-736.19,0.00010996,2]
[333583249,1722258641590,-682.78,0.00010996,2]
[333583250,1722258641602,-500.0,0.00010996,2]